bitfinex/quotes_SOLUSD_20251116
["timestamp","ask_amount","ask_price","bid_price","bid_amount"]
[1763315200860,22.6512,135.85,135.81,13.85617994]
[1763315201236,63.13617994,135.87,135.82,13.85617994]
[1763315201432,50.0,135.87,135.83,13.85617994]
[1763315201662,63.13617994,135.87,135.83,0.72]
[1763315202675,13.13617994,135.84,135.79,13.85617994]
[1763315203136,13.13617994,135.84,135.8,0.72]
[1763315203532,13.13617994,135.84,135.8,61.92]
[1763315204206,13.13617994,135.84,135.8,165.0]
[1763315204386,13.13617994,135.82,135.8,165.0]
[1763315204576,13.13617994,135.83,135.8,165.68]
[1763315204900,50.0,135.85,135.8,61.2]
[1763315204901,13.13617994,135.82,135.8,61.2]
[1763315205393,50.0,135.83,135.8,61.2]
[1763315205394,63.13617994,135.83,135.8,61.2]
[1763315205993,13.13617994,135.82,135.8,61.2]
[1763315206878,63.13617994,135.83,135.8,61.2]
[1763315207396,63.13617994,135.83,135.81,0.68]
[1763315207708,35.78737994,135.84,135.81,0.68]
[1763315207993,22.6512,135.84,135.81,0.68]
[1763315209073,13.13617994,135.83,135.8,61.2]
[1763315209387,50.0,135.8,135.74,0.68]
[1763315209562,13.13617994,135.79,135.75,0.68]
[1763315210674,50.0,135.82,135.76,9.78882769]
[1763315210893,50.0,135.82,135.77,13.13617994]
[1763315211076,50.0,135.82,135.77,13.81617994]
[1763315211393,50.0,135.82,135.78,0.68]
[1763315212299,13.13617994,135.83,135.78,0.68]
[1763315212482,13.13617994,135.83,135.78,13.81617994]
[1763315212682,85.78737994,135.84,135.78,13.81617994]
[1763315212906,85.78737994,135.84,135.79,0.68]
[1763315213092,13.13617994,135.83,135.79,0.68]
[1763315214401,13.13617994,135.83,135.79,61.88]
[1763315214902,13.13617994,135.83,135.8,0.68]
[1763315215105,13.13617994,135.83,135.8,61.88]
[1763315216192,50.0,135.84,135.8,61.88]
[1763315216387,13.13617994,135.83,135.8,61.88]
[1763315217190,13.13617994,135.82,135.8,61.2]
[1763315217392,13.13617994,135.81,135.8,61.2]
[1763315217710,63.13617994,135.81,135.76,0.68]
[1763315217913,13.13617994,135.79,135.76,0.68]
[1763315218113,13.13617994,135.8,135.76,0.68]
[1763315219394,50.0,135.81,135.76,13.81617994]
[1763315219609,63.13617994,135.83,135.77,22.92500763]
[1763315219910,63.13617994,135.83,135.78,0.68]
[1763315220820,17.99280041,135.89,135.78,0.68]
[1763315220821,60.98604832,135.9,135.82,13.13617994]
[1763315220985,60.98604832,135.9,135.84,13.13617994]
[1763315220986,63.13617994,135.9,135.84,13.13617994]
[1763315221185,13.13617994,135.89,135.82,124.78882769]
[1763315221406,50.0,135.91,135.82,11.88]
[1763315221407,35.78737994,135.86,135.82,11.88]
[1763315221592,13.13617994,135.86,135.82,11.2]
[1763315221797,13.13617994,135.86,135.82,11.88]
[1763315221985,13.13617994,135.87,135.83,0.68]
[1763315222187,10.98604832,135.91,135.83,128.81617994]
[1763315222408,13.13617994,135.88,135.83,115.68]
[1763315222803,13.13617994,135.86,135.83,115.68]
[1763315223011,13.13617994,135.86,135.83,115.0]
[1763315223208,35.78737994,135.85,135.83,11.2]
[1763315223416,13.13617994,135.84,135.81,11.2]
[1763315223597,13.13617994,135.83,135.81,11.2]
[1763315224000,22.6512,135.83,135.81,11.2]
[1763315224205,35.78737994,135.83,135.81,11.2]
[1763315224398,35.78737994,135.83,135.79,11.88]
[1763315224697,13.13617994,135.82,135.79,11.88]
[1763315224899,13.13617994,135.8,135.79,11.2]
[1763315225100,13.13617994,135.8,135.76,0.68]
[1763315225489,13.13617994,135.78,135.73,0.68]
[1763315225802,13.13617994,135.77,135.73,0.68]
[1763315226005,13.13617994,135.78,135.73,0.68]
[1763315226187,72.6512,135.81,135.72,22.6512]
[1763315226393,72.6512,135.81,135.73,0.68]
[1763315226394,13.13617994,135.77,135.73,0.68]
[1763315226596,22.6512,135.81,135.74,9.78882769]
[1763315226799,22.6512,135.81,135.72,11.2]
[1763315226800,22.6512,135.8,135.76,13.13617994]
[1763315227199,35.78737994,135.8,135.77,0.68]
[1763315227397,22.6512,135.8,135.77,0.68]
[1763315227625,35.78737994,135.8,135.77,0.68]
[1763315227794,13.13617994,135.79,135.74,13.13617994]
[1763315227990,13.13617994,135.8,135.75,0.68]
[1763315228223,13.13617994,135.8,135.75,23.60500763]
[1763315228424,22.6512,135.83,135.77,13.13617994]
[1763315228631,13.13617994,135.82,135.77,13.13617994]
[1763315228825,22.6512,135.83,135.78,13.81617994]
[1763315229427,22.6512,135.83,135.79,0.68]
[1763315230203,13.13617994,135.82,135.77,0.68]
[1763315230531,22.6512,135.83,135.77,22.92500763]
[1763315230696,59.78882769,135.88,135.77,22.92500763]
[1763315230697,13.13617994,135.88,135.82,13.13617994]
[1763315230896,13.13617994,135.88,135.83,13.13617994]
[1763315231119,13.13617994,135.85,135.8,0.68]
[1763315231910,50.0,135.87,135.8,0.68]
[1763315231911,13.13617994,135.83,135.8,0.68]
[1763315232926,35.78737994,135.84,135.8,0.68]
[1763315233325,11.04719364,135.89,135.82,13.13617994]
[1763315233326,54.94320585,135.89,135.82,13.13617994]
[1763315233531,13.13617994,135.89,135.83,13.13617994]
[1763315233708,13.13617994,135.9,135.84,13.85617994]
[1763315233910,13.13617994,135.89,135.84,13.85617994]
[1763315234123,13.13617994,135.89,135.84,0.72]
[1763315234330,13.13617994,135.89,135.85,0.72]
[1763315234927,72.6512,135.91,135.85,0.72]
[1763315235241,13.13617994,135.87,135.82,0.71]
[1763315235420,13.13617994,135.87,135.82,9.78882769]
[1763315235622,13.13617994,135.87,135.83,0.71]
[1763315235823,13.13617994,135.85,135.8,0.71]
[1763315236025,72.6512,135.87,135.8,0.71]
[1763315236026,13.13617994,135.84,135.8,0.71]
[1763315237418,13.13617994,135.85,135.8,13.84617994]
[1763315237932,13.13617994,135.84,135.81,0.71]
[1763315238722,13.13617994,135.84,135.79,13.13617994]
[1763315238723,13.13617994,135.84,135.79,0.71]
[1763315238929,13.13617994,135.83,135.8,0.71]
[1763315239357,13.13617994,135.82,135.8,115.0]
[1763315239634,13.13617994,135.82,135.8,11.2]
[1763315239841,22.6512,135.84,135.8,11.2]
[1763315239842,13.13617994,135.81,135.8,11.2]
[1763315240041,35.78737994,135.82,135.8,11.2]
[1763315241351,13.13617994,135.81,135.8,11.2]
[1763315241556,35.78737994,135.82,135.8,11.2]
[1763315242262,35.78737994,135.81,135.8,11.2]
[1763315242442,50.0,135.8,135.72,0.71]
[1763315242635,50.0,135.8,135.72,11.91]
[1763315242636,13.13617994,135.76,135.72,11.91]
[1763315242827,13.13617994,135.75,135.72,0.71]
[1763315243033,13.13617994,135.76,135.72,0.71]
[1763315244069,22.6512,135.79,135.75,13.13617994]
[1763315244236,22.6512,135.79,135.74,13.13617994]
[1763315244237,35.78737994,135.79,135.74,13.13617994]
[1763315244569,13.13617994,135.75,135.7,10.49882769]
[1763315244865,35.78737994,135.79,135.74,13.13617994]
[1763315245070,22.6512,135.79,135.74,13.13617994]
[1763315245267,22.6512,135.79,135.75,0.71]
[1763315245435,35.78737994,135.79,135.75,0.71]
[1763315245633,22.6512,135.79,135.75,13.84617994]
[1763315246155,22.6512,135.79,135.76,0.71]
[1763315246331,35.78737994,135.79,135.75,0.71]
[1763315246662,22.6512,135.79,135.74,22.92500763]
[1763315246842,22.6512,135.79,135.76,0.71]
[1763315247639,13.13617994,135.84,135.78,13.13617994]
[1763315247851,13.13617994,135.84,135.78,24.33617994]
[1763315248047,56.10398779,135.88,135.79,13.84617994]
[1763315248048,13.13617994,135.85,135.79,13.84617994]
[1763315248255,50.0,135.88,135.8,22.92500763]
[1763315248459,35.78737994,135.86,135.8,34.83500763]
[1763315248764,35.78737994,135.86,135.81,0.71]
[1763315248947,13.13617994,135.86,135.81,0.71]
[1763315249261,35.78737994,135.85,135.81,0.71]
[1763315249560,50.0,135.88,135.81,13.84617994]
[1763315249736,50.0,135.88,135.81,25.04617994]
[1763315249737,35.78737994,135.87,135.81,25.04617994]
[1763315249934,13.13617994,135.85,135.81,11.2]
[1763315250166,72.6512,135.87,135.81,0.71]
[1763315250167,13.13617994,135.84,135.81,0.71]
[1763315250334,13.13617994,135.84,135.79,11.91]
[1763315250649,13.13617994,135.84,135.79,0.71]
[1763315250846,13.13617994,135.84,135.8,0.71]
[1763315251060,72.6512,135.87,135.8,0.71]
[1763315251061,22.6512,135.87,135.8,0.71]
[1763315251369,50.0,135.88,135.8,10.49882769]
[1763315251370,35.78737994,135.85,135.8,10.49882769]
[1763315251568,22.6512,135.85,135.81,13.13617994]
[1763315251867,22.6512,135.86,135.81,13.84617994]
[1763315252367,13.13617994,135.87,135.82,0.71]
[1763315252867,7.53358848,135.87,135.82,0.71]
[1763315253051,22.6512,135.86,135.82,0.71]
[1763315253255,22.6512,135.86,135.82,11.91]
[1763315253870,30.18478848,135.87,135.83,0.71]
[1763315254386,30.18478848,135.87,135.83,11.91]
[1763315255967,22.6512,135.87,135.83,11.91]
[1763315256165,30.18478848,135.87,135.83,11.2]
[1763315256467,7.53358848,135.86,135.83,11.2]
[1763315256672,30.18478848,135.84,135.8,11.2]
[1763315256971,30.18478848,135.84,135.81,0.71]
[1763315256972,22.6512,135.84,135.81,0.71]
[1763315257178,22.6512,135.84,135.81,8.24358848]
[1763315257680,22.6512,135.84,135.82,0.71]
[1763315258539,7.53358848,135.86,135.82,0.71]
[1763315258746,22.6512,135.88,135.82,8.24358848]
[1763315258943,7.53358848,135.87,135.82,115.71]
[1763315259555,22.6512,135.88,135.83,8.24358848]
[1763315259869,7.53358848,135.9,135.84,8.24358848]
[1763315260079,7.53358848,135.92,135.86,7.53358848]
[1763315260285,30.18478848,135.92,135.87,0.71]
[1763315260854,7.53358848,135.91,135.87,0.71]
[1763315261148,67.34467061,135.95,135.89,7.53358848]
[1763315261149,7.53358848,135.95,135.89,7.53358848]
[1763315261342,30.18478848,135.95,135.9,8.24358848]
[1763315261538,7.53358848,135.97,135.91,7.53358848]
[1763315261858,7.53358848,135.96,135.91,0.71]
[1763315262245,7.53358848,135.92,135.9,11.2]
[1763315262466,7.53358848,135.91,135.86,11.91]
[1763315262671,7.53358848,135.91,135.87,0.71]
[1763315262978,7.53358848,135.9,135.87,0.71]
[1763315263341,7.53358848,135.91,135.87,0.71]
[1763315263538,7.53358848,135.9,135.87,11.91]
[1763315264179,7.53358848,135.9,135.87,11.92]
[1763315264465,7.53358848,135.91,135.87,11.2]
[1763315264672,7.53358848,135.91,135.88,0.72]
[1763315264871,7.53358848,135.91,135.87,11.92]
[1763315265350,22.6512,135.93,135.88,0.72]
[1763315265547,30.18478848,135.93,135.88,0.72]
[1763315265756,22.6512,135.93,135.88,29.24241617]
[1763315266046,7.53358848,135.95,135.89,10.50882769]
[1763315266252,7.53358848,135.94,135.89,21.70882769]
[1763315266667,7.53358848,135.94,135.9,0.72]
[1763315267255,7.53358848,135.95,135.9,0.72]
[1763315267456,7.53358848,135.94,135.9,0.72]
[1763315267772,7.53358848,135.94,135.89,11.2]
[1763315267773,7.53358848,135.93,135.89,11.2]
[1763315267961,7.53358848,135.93,135.89,11.92]
[1763315268275,7.53358848,135.93,135.9,0.72]
[1763315268572,7.53358848,135.94,135.9,0.72]
[1763315269155,22.6512,135.95,135.9,0.72]
[1763315269376,7.53358848,135.94,135.9,0.72]
[1763315269554,7.53358848,135.93,135.9,0.72]
[1763315269872,30.18478848,135.93,135.9,0.72]
[1763315270347,30.18478848,135.93,135.87,17.32241617]
[1763315270348,30.18478848,135.93,135.89,0.72]
[1763315271274,22.6512,135.93,135.89,0.72]
[1763315271682,7.53358848,135.96,135.9,7.53358848]
[1763315271872,22.6512,135.96,135.92,9.78882769]
[1763315272069,30.18478848,135.96,135.91,9.78882769]
[1763315272372,30.18478848,135.96,135.92,0.72]
[1763315273379,7.53358848,135.93,135.88,0.72]
[1763315273547,7.53358848,135.92,135.88,0.72]
[1763315273971,22.6512,135.94,135.88,0.72]
[1763315274381,7.53358848,135.92,135.88,0.72]
[1763315275060,7.53358848,135.93,135.88,0.72]
[1763315276155,22.6512,135.94,135.89,17.32241617]
[1763315276657,30.18478848,135.94,135.9,0.72]
[1763315277049,7.53358848,135.93,135.9,0.72]
[1763315277281,22.6512,135.94,135.9,0.72]
[1763315277482,7.53358848,135.93,135.9,0.72]
[1763315278270,7.53358848,135.93,135.88,0.72]
[1763315278452,7.53358848,135.93,135.87,9.78882769]
[1763315278453,7.53358848,135.93,135.87,10.50882769]
[1763315278653,22.6512,135.94,135.88,0.72]
[1763315278853,7.53358848,135.93,135.88,0.72]
[1763315279690,7.03358848,135.91,135.88,11.92]
[1763315279892,7.03358848,135.91,135.85,11.92]
[1763315279893,7.53358848,135.9,135.85,11.92]
[1763315280185,22.6512,135.91,135.85,0.72]
[1763315280186,7.53358848,135.88,135.85,0.72]
[1763315280389,7.53358848,135.9,135.85,0.72]
[1763315280576,30.18478848,135.91,135.85,8.25358848]
[1763315280764,7.53358848,135.9,135.85,0.72]
[1763315280964,7.53358848,135.88,135.85,0.72]
[1763315281195,7.53358848,135.89,135.85,0.72]
[1763315281371,7.53358848,135.88,135.85,0.72]
[1763315281568,7.53358848,135.86,135.79,11.2]
[1763315281781,7.53358848,135.83,135.79,0.72]
[1763315282090,7.53358848,135.83,135.8,0.72]
[1763315282273,77.8088074,135.88,135.8,0.72]
[1763315282591,7.53358848,135.85,135.8,0.72]
[1763315282817,7.53358848,135.86,135.8,0.72]
[1763315282981,7.53358848,135.85,135.8,0.72]
[1763315283179,7.53358848,135.84,135.8,0.72]
[1763315283381,7.53358848,135.83,135.79,21.70882769]
[1763315283576,22.6512,135.85,135.77,9.78882769]
[1763315283577,7.53358848,135.8,135.77,9.78882769]
[1763315283806,7.53358848,135.79,135.75,0.72]
[1763315284094,50.0,135.82,135.75,0.72]
[1763315284095,7.53358848,135.78,135.75,0.72]
[1763315284880,7.53358848,135.78,135.73,9.78882769]
[1763315284881,7.53358848,135.76,135.72,0.72]
[1763315285505,7.53358848,135.75,135.7,0.72]
[1763315285882,22.6512,135.8,135.7,0.72]
[1763315285883,72.6512,135.8,135.7,8.25358848]
[1763315286097,7.53358848,135.77,135.71,7.53358848]
[1763315286395,7.53358848,135.76,135.71,0.72]
[1763315286607,7.53358848,135.76,135.72,0.72]
[1763315286807,7.53358848,135.75,135.72,0.72]
[1763315287382,7.53358848,135.76,135.72,0.72]
[1763315287587,7.53358848,135.77,135.72,0.72]
[1763315287788,7.53358848,135.76,135.72,0.72]
[1763315288893,22.6512,135.8,135.73,9.78882769]
[1763315289095,7.53358848,135.78,135.73,9.78882769]
[1763315289301,7.53358848,135.77,135.74,0.72]
[1763315289503,30.18478848,135.78,135.74,0.72]
[1763315289819,30.18478848,135.79,135.74,115.72]
[1763315289987,30.18478848,135.79,135.75,9.78882769]
[1763315290186,22.6512,135.79,135.75,10.50882769]
[1763315290388,22.6512,135.79,135.76,0.72]
[1763315291097,30.18478848,135.79,135.74,115.72]
[1763315291302,22.6512,135.79,135.75,0.72]
[1763315291505,7.53358848,135.8,135.75,125.50882769]
[1763315291985,7.53358848,135.8,135.76,0.72]
[1763315292389,72.6512,135.82,135.76,0.72]
[1763315292599,7.53358848,135.8,135.76,0.72]
[1763315293201,7.53358848,135.78,135.75,115.0]
[1763315293418,22.6512,135.77,135.76,115.0]
[1763315293716,50.0,135.8,135.76,11.2]
[1763315293916,50.0,135.8,135.76,115.0]
[1763315293917,22.6512,135.79,135.76,115.0]
[1763315294294,22.6512,135.79,135.77,0.72]
[1763315294520,30.18478848,135.79,135.76,115.72]
[1763315294901,7.53358848,135.78,135.76,115.0]
[1763315295107,7.53358848,135.77,135.76,115.0]
[1763315295417,22.6512,135.79,135.78,3.66641152]
[1763315295418,122.6512,135.79,135.78,3.66641152]
[1763315295796,72.6512,135.79,135.78,3.66641152]
[1763315295997,22.6512,135.79,135.78,3.66641152]
[1763315296406,30.18478848,135.79,135.78,3.66641152]
[1763315299921,80.18478848,135.79,135.78,3.66641152]
[1763315300222,130.18478848,135.79,135.78,3.66641152]
[1763315300726,80.18478848,135.79,135.78,3.66641152]
[1763315301507,5.1576074,135.83,135.78,4.36641152]
[1763315301508,55.1576074,135.83,135.78,4.36641152]
[1763315301711,55.1576074,135.83,135.78,108.16641152]
[1763315301712,7.53358848,135.81,135.78,108.16641152]
[1763315301930,30.18478848,135.81,135.78,108.16641152]
[1763315302116,50.0,135.83,135.81,3.66641152]
[1763315302117,7.53358848,135.83,135.81,3.66641152]
[1763315303019,22.6512,135.82,135.81,3.66641152]
[1763315303216,22.6512,135.82,135.81,4.36641152]
[1763315303419,22.6512,135.82,135.81,3.66641152]
[1763315303617,7.53358848,135.85,135.81,4.36641152]
[1763315303817,7.53358848,135.84,135.82,0.7]
[1763315304014,7.53358848,135.84,135.82,108.16641152]
[1763315304232,66.39829022,135.87,135.82,108.16641152]
[1763315304233,7.53358848,135.87,135.82,108.16641152]
[1763315304547,50.0,135.89,135.83,0.7]
[1763315304548,30.18478848,135.86,135.83,0.7]
[1763315305112,50.0,135.89,135.83,108.16641152]
[1763315305317,7.53358848,135.88,135.84,0.7]
[1763315305538,7.53358848,135.87,135.84,0.7]
[1763315306140,22.6512,135.88,135.83,107.46641152]
[1763315306141,7.53358848,135.85,135.83,107.46641152]
[1763315306317,7.53358848,135.84,135.83,3.66641152]
[1763315306643,7.53358848,135.84,135.8,103.8]
[1763315306831,7.53358848,135.83,135.81,0.7]
[1763315307146,7.53358848,135.84,135.81,0.7]
[1763315308223,22.6512,135.86,135.81,10.48882769]
[1763315308441,30.18478848,135.86,135.81,10.48882769]
[1763315308637,30.18478848,135.86,135.82,0.7]
[1763315308638,7.53358848,135.85,135.82,0.7]
[1763315309018,7.53358848,135.84,135.82,165.7]
[1763315309442,22.6512,135.86,135.82,165.7]
[1763315309443,30.18478848,135.86,135.83,0.7]
[1763315309646,50.0,135.89,135.86,31.01521152]
[1763315309950,7.53358848,135.87,135.86,31.01521152]
[1763315312721,22.6512,135.87,135.86,31.01521152]
[1763315312928,35.77056817,135.87,135.86,31.01521152]
[1763315313250,50.0,135.86,135.83,31.01521152]
[1763315313550,72.6512,135.87,135.83,31.71521152]
[1763315313755,13.11936817,135.84,135.83,31.01521152]
[1763315314338,72.6512,135.87,135.83,0.7]
[1763315314339,35.77056817,135.86,135.83,0.7]
[1763315314528,35.77056817,135.86,135.84,0.7]
[1763315314732,13.11936817,135.87,135.84,0.7]
[1763315316759,13.11936817,135.89,135.84,0.7]
[1763315317134,22.6512,135.9,135.84,0.7]
[1763315317461,13.11936817,135.9,135.85,9.78882769]
[1763315317767,13.11936817,135.9,135.86,0.7]
[1763315319955,22.6512,135.92,135.86,0.7]
[1763315320159,22.6512,135.94,135.87,9.78882769]
[1763315320367,13.11936817,135.92,135.87,144.60403921]
[1763315320545,13.11936817,135.93,135.88,0.7]
[1763315321660,13.11936817,135.92,135.88,0.7]
[1763315323259,13.11936817,135.91,135.88,0.7]
[1763315323442,13.11936817,135.94,135.88,148.63457969]
[1763315323957,22.8512,135.95,135.88,148.63457969]
[1763315323958,35.97056817,135.95,135.9,9.78882769]
[1763315324264,22.8512,135.95,135.9,9.78882769]
[1763315324434,22.8512,135.95,135.92,9.78882769]
[1763315324435,0.2,135.95,135.92,9.78882769]
[1763315324631,30.81936817,135.97,135.95,30.81521152]
[1763315324834,30.81936817,135.97,135.95,134.61521152]
[1763315325155,13.31936817,135.99,135.95,134.61521152]
[1763315325356,0.2,135.99,135.96,0.69]
[1763315325544,0.2,135.99,135.96,13.80936817]
[1763315326053,0.2,135.99,135.97,0.69]
[1763315326449,13.31936817,135.99,135.97,0.69]
[1763315326958,13.31936817,135.99,135.95,144.40403921]
[1763315326959,13.11936817,135.98,135.95,134.61521152]
[1763315327264,13.11936817,135.98,135.95,135.30521152]
[1763315327560,13.11936817,135.98,135.96,0.69]
[1763315327749,0.2,135.99,135.96,0.69]
[1763315328249,13.31936817,135.99,135.96,0.69]
[1763315328752,13.11936817,135.97,135.95,134.61521152]
[1763315328939,13.11936817,135.97,135.95,135.30521152]
[1763315329260,0.2,135.99,135.95,134.61521152]
[1763315329261,13.11936817,135.96,135.95,134.61521152]
[1763315329767,13.11936817,135.96,135.95,30.81521152]
[1763315330263,22.6512,135.98,135.95,30.81521152]
[1763315330464,13.11936817,135.97,135.95,30.81521152]
[1763315330646,13.11936817,135.96,135.95,30.81521152]
[1763315332043,50.0,135.96,135.91,30.81521152]
[1763315332242,50.0,135.96,135.89,0.69]
[1763315332243,13.11936817,135.92,135.89,135.30521152]
[1763315332751,13.11936817,135.92,135.9,0.69]
[1763315333242,13.11936817,135.91,135.87,0.69]
[1763315333447,22.6512,135.95,135.88,0.69]
[1763315333749,13.11936817,135.93,135.88,0.69]
[1763315334063,13.11936817,135.91,135.88,0.69]
[1763315336368,13.11936817,135.89,135.86,0.69]
[1763315336671,13.11936817,135.88,135.86,0.69]
[1763315336869,13.11936817,135.87,135.83,10.47882769]
[1763315337168,72.6512,135.92,135.84,0.69]
[1763315337378,13.11936817,135.89,135.84,0.69]
[1763315338555,13.11936817,135.9,135.85,9.78882769]
[1763315338743,22.6512,135.92,135.9,17.69584335]
[1763315338942,13.11936817,135.91,135.9,121.49584335]
[1763315340783,13.11936817,135.91,135.9,17.69584335]
[1763315342168,22.6512,135.94,135.9,18.38584335]
[1763315342377,50.0,135.96,135.91,0.69]
[1763315342678,13.11936817,135.92,135.9,121.49584335]
[1763315342908,13.11936817,135.92,135.9,122.18584335]
[1763315343093,13.11936817,135.91,135.9,121.49584335]
[1763315343592,13.11936817,135.91,135.9,17.69584335]
[1763315345669,22.6512,135.92,135.9,18.38584335]
[1763315345670,13.11936817,135.92,135.9,18.38584335]
[1763315345996,13.11936817,135.91,135.9,17.69584335]
[1763315346378,22.6512,135.94,135.9,17.69584335]
[1763315346379,13.11936817,135.95,135.91,17.69584335]
[1763315346573,50.0,136.0,135.92,9.78882769]
[1763315346800,50.0,136.0,135.92,131.97467104]
[1763315346801,13.11936817,135.97,135.92,131.97467104]
[1763315347006,13.11936817,135.97,135.93,0.69]
[1763315347210,13.11936817,135.98,135.93,18.38584335]
[1763315347394,13.31936817,135.99,135.94,10.47882769]
[1763315347729,13.31936817,135.99,135.95,0.69]
[1763315348088,0.2,135.99,135.95,0.69]
[1763315348417,0.2,135.99,135.96,9.78882769]
[1763315348581,0.2,135.99,135.96,22.90819586]
[1763315348785,0.2,135.99,135.97,0.69]
[1763315349493,13.31936817,135.99,135.95,0.69]
[1763315349799,0.2,135.99,135.95,0.69]
[1763315350003,13.11936817,135.98,135.95,0.69]
[1763315350203,0.2,135.99,135.95,0.69]
[1763315350604,13.11936817,135.97,135.93,18.38584335]
[1763315350803,0.2,135.99,135.93,18.38584335]
[1763315350804,13.11936817,135.96,135.93,0.69]
[1763315351203,13.11936817,135.97,135.94,0.69]
[1763315351805,13.11936817,135.95,135.91,0.69]
[1763315351999,13.11936817,135.95,135.92,0.69]
[1763315352316,13.11936817,135.94,135.92,0.69]
[1763315353019,13.11936817,135.95,135.92,0.69]
[1763315353198,13.11936817,135.94,135.92,0.69]
[1763315353602,13.11936817,135.95,135.92,0.69]
[1763315354609,13.11936817,135.96,135.92,0.69]
[1763315354804,13.11936817,135.96,135.92,122.18584335]
[1763315355003,0.2,135.99,135.93,13.82936817]
[1763315355309,0.2,135.99,135.96,22.90819586]
[1763315355512,0.2,135.99,135.97,13.77936817]
[1763315355695,0.2,135.99,135.98,0.66]
[1763315356822,0.2,136.03,135.99,9.78882769]
[1763315357004,0.2,136.03,136.02,9.78882769]
[1763315357393,0.2,136.04,136.02,23.56819586]
[1763315357723,0.2,136.04,136.0,22.6512]
[1763315357724,0.2,136.04,136.03,23.56819586]
[1763315357899,0.2,136.04,136.03,10.44882769]
[1763315358105,0.2,136.04,136.03,23.56819586]
[1763315358803,0.2,136.04,136.03,10.44882769]
[1763315359196,0.2,136.05,136.03,13.77936817]
[1763315359528,13.31936817,136.05,136.01,10.44882769]
[1763315359695,13.31936817,136.05,136.01,0.66]
[1763315360124,0.2,136.05,136.01,0.66]
[1763315360294,13.31936817,136.05,136.01,0.66]
[1763315360618,0.2,136.05,136.01,10.44882769]
[1763315360928,0.2,136.05,136.03,13.11936817]
[1763315361422,0.2,136.05,136.04,0.66]
[1763315362611,13.31936817,136.07,136.06,60.8]
[1763315362824,13.31936817,136.07,136.04,165.26]
[1763315363129,0.2,136.07,136.05,0.66]
[1763315363636,0.2,136.07,136.04,164.6]
[1763315363835,13.31936817,136.07,136.04,164.6]
[1763315364217,13.31936817,136.07,136.04,165.26]
[1763315364650,13.31936817,136.07,136.04,164.6]
[1763315364947,13.11936817,136.05,136.03,60.8]
[1763315365235,13.11936817,136.04,136.03,60.8]
[1763315365739,13.11936817,136.04,136.0,103.8]
[1763315365740,136.38056817,136.04,135.97,60.8]
[1763315365932,13.11936817,135.98,135.97,60.8]
[1763315366237,13.11936817,135.99,135.97,61.46]
[1763315366427,13.11936817,136.01,135.98,0.66]
[1763315366634,13.11936817,136.01,135.98,61.46]
[1763315367952,13.11936817,135.99,135.98,60.8]
[1763315368152,13.11936817,135.99,135.96,60.8]
[1763315368645,13.11936817,135.99,135.96,61.46]
[1763315369648,0.61,136.02,135.97,0.66]
[1763315369962,13.11936817,136.02,135.97,0.66]
[1763315370331,13.11936817,135.98,135.96,60.8]
[1763315370532,13.11936817,135.99,135.96,61.46]
[1763315370731,13.11936817,135.98,135.96,60.8]
[1763315370936,13.11936817,135.98,135.96,61.46]
[1763315372163,0.61,136.01,135.96,61.46]
[1763315372164,63.11936817,136.0,135.96,60.8]
[1763315372357,13.11936817,135.97,135.96,60.8]
[1763315372660,13.11936817,135.97,135.94,61.46]
[1763315372853,13.11936817,135.96,135.95,0.66]
[1763315373042,13.11936817,135.96,135.95,60.8]
[1763315373227,13.11936817,135.97,135.95,60.8]
[1763315373427,13.11936817,135.96,135.95,60.8]
[1763315373632,13.11936817,135.97,135.95,61.46]
[1763315373858,13.11936817,135.97,135.95,60.8]
[1763315374440,13.11936817,135.98,135.95,61.46]
[1763315374954,23.2612,136.01,135.95,61.46]